fUSD/lending_fUSD_20240121
["ID","MTS","AMOUNT","RATE_DAILY","PERIOD"]
[312433820,1705871487961,-1824.29,0.00042739,31]
[312433821,1705871487970,-4121.58,0.00042739,31]
[312433822,1705871487979,-4729.82,0.00042739,31]
[312433823,1705871487989,-717.1,0.00042739,31]
[312433824,1705871487998,-500.0,0.00042739,31]
[312433825,1705871488008,-194.44819625,0.00042739,31]
[312433826,1705871488017,-500.0,0.00042739,31]
[312433827,1705871488027,-688.94,0.00042739,31]
[312433828,1705871488036,-551.32,0.00042739,31]
[312433829,1705871488045,-2388.05,0.00042739,31]
[312433830,1705871488055,-2072.56,0.00042739,31]
[312433831,1705871488064,-500.0,0.00042739,31]
[312433832,1705871488074,-500.0,0.00042739,31]
[312433833,1705871488083,-500.0,0.00042739,31]
[312433834,1705871488093,-500.0,0.00042739,31]
[312433835,1705871488102,-3229.22,0.00042739,31]
[312433836,1705871488112,-4451.68,0.00042739,31]
[312433837,1705871488121,-1373.64,0.00042739,31]
[312433838,1705871488131,-2025.04,0.00042739,31]
[312433839,1705871488141,-500.0,0.00042739,31]
[312433840,1705871488150,-1021.34,0.00042739,31]
[312433841,1705871488159,-500.0,0.00042739,31]
[312433842,1705871488169,-1176.05,0.00042739,31]
[312433843,1705871488178,-2369.33,0.00042739,31]
[312433844,1705871488188,-1213.58,0.00042739,31]
[312433845,1705871488198,-500.0,0.00042739,5]
[312433846,1705871488208,-500.0,0.00042739,31]
[312433847,1705871488217,-500.0,0.00042739,31]
[312433848,1705871488226,-553.77,0.00042739,31]
[312433849,1705871488237,-2910.1,0.00042739,31]
[312433850,1705871488246,-1282.24,0.00042739,31]
[312433851,1705871488256,-662.34,0.00042739,31]
[312433852,1705871488265,-500.0,0.00042739,31]
[312433853,1705871488275,-500.0,0.00042739,31]
[312433854,1705871488285,-500.0,0.00042739,31]
[312433855,1705871488295,-1059.85,0.00042739,31]
[312433856,1705871488304,-2421.46,0.00042739,31]
[312433857,1705871488314,-1056.67,0.00042739,31]
[312433858,1705871488323,-1638.07,0.00042739,31]
[312433859,1705871488333,-500.0,0.00042739,31]
[312433860,1705871488341,-500.0,0.00042739,31]
[312433861,1705871488351,-500.0,0.00042739,31]
[312433862,1705871488362,-7775.6,0.00042739,31]
[312433863,1705871488374,-3940.76,0.00042739,31]
[312433864,1705871488384,-500.0,0.00042739,31]
[312433865,1705871488394,-202.66023897,0.00042739,31]
[312433866,1705871488403,-1657.73,0.00042739,31]
[312433867,1705871488412,-500.0,0.00042739,31]
[312433868,1705871488422,-10435.91,0.00042739,31]
[312433869,1705871488432,-633.78,0.00042739,31]
[312433870,1705871488442,-500.0,0.00042739,31]
[312433871,1705871488454,-3681.15,0.00042739,31]
[312433872,1705871488464,-504.34,0.00042739,31]
[312433873,1705871488474,-500.0,0.00042739,31]
[312433874,1705871488483,-2074.24,0.00042739,31]
[312433875,1705871488494,-1174.86,0.00042739,31]
[312433876,1705871488504,-978.58,0.00042739,31]
[312433877,1705871488513,-500.0,0.00042739,31]
[312433878,1705871488523,-500.0,0.00042739,31]
[312433879,1705871488532,-837.56,0.00042739,31]
[312433880,1705871488542,-12257.55,0.00042739,31]
[312433881,1705871488552,-504.14,0.00042739,31]
[312433882,1705871488561,-1233.83,0.00042739,31]
[312433883,1705871488571,-574.42,0.00042739,31]
[312433884,1705871488581,-2706.93,0.00042739,31]
[312433885,1705871488590,-500.0,0.00042739,31]
[312433886,1705871488600,-706.21,0.00042739,31]
[312433887,1705871488609,-500.0,0.00042739,31]
[312433888,1705871488619,-753.98,0.00042739,31]
[312433889,1705871488629,-500.0,0.00042739,31]
[312433890,1705871488638,-500.0,0.00042739,31]
[312433891,1705871488647,-472.12609016,0.00042739,31]
[312433892,1705871488656,-1904.36,0.00042739,31]
[312433893,1705871488665,-2361.99,0.00042739,31]
[312433894,1705871488674,-3057.49,0.00042739,31]
[312433895,1705871488684,-500.0,0.00042739,31]
[312433896,1705871488693,-1193.21,0.00042739,31]
[312433897,1705871488704,-500.0,0.00042739,31]
[312433898,1705871488714,-5228.61,0.00042739,31]
[312433899,1705871488723,-501.55,0.00042739,31]
[312433900,1705871488732,-500.0,0.00042739,31]
[312433901,1705871488742,-673.47,0.00042739,31]
[312433902,1705871488752,-500.0,0.00042739,31]
[312433903,1705871488762,-500.0,0.00042739,31]
[312433904,1705871488773,-500.0,0.00042739,31]
[312433905,1705871488784,-706.05,0.00042739,31]
[312433906,1705871488794,-2736.65,0.00042739,31]
[312433907,1705871488804,-1933.78,0.00042739,31]
[312433908,1705871488814,-574.77,0.00042739,31]
[312433909,1705871488823,-2095.74,0.00042739,31]
[312433910,1705871488833,-1129.43,0.00042739,31]
[312433911,1705871488843,-1030.15,0.00042739,31]
[312433912,1705871488852,-2123.7,0.00042739,31]
[312433913,1705871488862,-757.56,0.00042739,31]
[312433914,1705871488871,-4409.24,0.00042739,31]
[312433915,1705871488880,-500.0,0.00042739,31]
[312433916,1705871488890,-684.66,0.00042739,31]
[312433917,1705871488899,-612.11,0.00042739,31]
[312433918,1705871488909,-1624.83,0.00042739,31]
[312433919,1705871488918,-2380.48,0.00042739,31]
[312433920,1705871488928,-500.0,0.00042739,31]
[312433921,1705871488937,-3071.97,0.00042739,31]
[312433922,1705871488947,-2546.42,0.00042739,31]
[312433923,1705871488958,-1285.05,0.00042739,31]
[312433924,1705871488967,-2297.31,0.00042739,31]
[312433925,1705871488977,-500.0,0.00042739,31]
[312433926,1705871488987,-1012.66,0.00042739,31]
[312433927,1705871488996,-2124.24,0.00042739,31]
[312433928,1705871489006,-802.71,0.00042739,31]
[312433929,1705871489015,-500.0,0.00042739,31]
[312433930,1705871489024,-500.0,0.00042739,31]
[312433931,1705871489033,-589.46,0.00042739,31]
[312433932,1705871489043,-3796.95,0.00042739,31]
[312433933,1705871489052,-672.07,0.00042739,31]
[312433934,1705871489061,-500.0,0.00042739,31]
[312433935,1705871489070,-1018.92,0.00042739,31]
[312433936,1705871489080,-890.78,0.00042739,31]
[312433937,1705871489089,-551.48,0.00042739,31]
[312433938,1705871489099,-500.0,0.00042739,31]
[312433939,1705871489108,-558.76,0.00042739,31]
[312433940,1705871489118,-1534.19,0.00042739,31]
[312433941,1705871489127,-2212.81,0.00042739,31]
[312433942,1705871489137,-4831.05,0.00042739,31]
[312433943,1705871489146,-9801.56,0.00042739,31]
[312433944,1705871489155,-12999.6,0.00042739,31]
[312433945,1705871489165,-1513.82,0.00042739,31]
[312433946,1705871489174,-997.89,0.00042739,31]
[312433947,1705871489183,-742.61,0.00042739,31]
[312433948,1705871489193,-1107.38,0.00042739,31]
[312433949,1705871489204,-1969.05,0.00042739,31]
[312433950,1705871489213,-500.0,0.00042739,31]
[312433951,1705871489222,-500.0,0.00042739,31]
[312433952,1705871489231,-2273.85,0.00042739,31]
[312433953,1705871489241,-2701.75,0.00042739,31]
[312433954,1705871489251,-500.0,0.00042739,31]
[312433955,1705871489260,-500.0,0.00042739,31]
[312433956,1705871489270,-500.0,0.00042739,2]
[312433957,1705871489280,-562.19,0.00042739,31]
[312433958,1705871489289,-1914.09,0.00042739,31]
[312433959,1705871489297,-500.0,0.00042739,31]
[312433960,1705871489307,-500.0,0.00042739,31]
[312433961,1705871489317,-3339.48,0.00042739,31]
[312433962,1705871489326,-759.23,0.00042739,31]
[312433963,1705871489336,-1721.5,0.00042739,31]
[312433964,1705871489347,-500.0,0.00042739,31]
[312433965,1705871489362,-4012.63,0.00042739,31]
[312433966,1705871489371,-1410.74,0.00042739,31]
[312433967,1705871489382,-500.0,0.00042739,31]
[312433968,1705871489391,-500.0,0.00042739,31]
[312433969,1705871489403,-6318.58,0.00042739,31]
[312433970,1705871489413,-1598.09,0.00042739,31]
[312433971,1705871489422,-1018.04,0.00042739,31]
[312433972,1705871489432,-796.67,0.00042739,31]
[312433973,1705871489443,-584.2,0.00042739,31]
[312433974,1705871489453,-571.75,0.00042739,31]
[312433975,1705871489463,-1398.35,0.00042739,31]
[312433976,1705871489472,-959.8,0.00042739,31]
[312433977,1705871489481,-4513.47,0.00042739,31]
[312433978,1705871489490,-500.0,0.00042739,31]
[312433979,1705871489499,-2490.25,0.00042739,31]
[312433980,1705871489508,-500.0,0.00042739,31]
[312433981,1705871489518,-590.71,0.00042739,31]
[312433982,1705871489528,-699.35,0.00042739,31]
[312433983,1705871489537,-4695.07,0.00042739,31]
[312433984,1705871489548,-500.0,0.00042739,31]
[312433985,1705871489558,-590.87,0.00042739,31]
[312433986,1705871489567,-662.71,0.00042739,31]
[312433987,1705871489577,-10157.54,0.00042739,31]
[312433988,1705871489586,-1371.42,0.00042739,31]
[312433989,1705871489596,-500.0,0.00042739,7]
[312433990,1705871489605,-500.0,0.00042739,31]
[312433991,1705871489614,-1632.83,0.00042739,31]
[312433992,1705871489624,-546.78,0.00042739,31]
[312433993,1705871489633,-1400.28,0.00042739,31]
[312433994,1705871489643,-1048.27,0.00042739,31]
[312433995,1705871489651,-1625.71,0.00042739,31]
[312433996,1705871489660,-500.0,0.00042739,31]
[312433997,1705871489670,-1132.07,0.00042739,31]
[312433998,1705871489679,-1146.41,0.00042739,31]
[312433999,1705871489688,-500.0,0.00042739,31]
[312434000,1705871489697,-2152.6,0.00042739,31]
[312434001,1705871489707,-500.0,0.00042739,31]
[312434002,1705871489716,-1788.55,0.00042739,31]
[312434003,1705871489725,-1000.0,0.00042739,31]
[312434004,1705871489735,-2308.11,0.00042739,31]
[312434005,1705871489744,-533.78,0.00042739,31]
[312434006,1705871489754,-642.57,0.00042739,31]
[312434007,1705871489764,-736.68,0.00042739,31]
[312434008,1705871489773,-1342.58,0.00042739,31]
[312434009,1705871489783,-2080.47,0.00042739,31]
[312434010,1705871489792,-827.35,0.00042739,31]
[312434011,1705871489803,-2270.31,0.00042739,31]
[312434012,1705871489812,-2881.28,0.00042739,31]
[312434013,1705871489822,-1168.81,0.00042739,31]
[312434014,1705871489832,-500.0,0.00042739,31]
[312434015,1705871489841,-500.0,0.00042739,31]
[312434016,1705871489852,-14616.47,0.00042739,31]
[312434017,1705871489862,-578.26,0.00042739,31]
[312434018,1705871489873,-696.16,0.00042739,31]
[312434019,1705871489883,-1284.46,0.00042739,31]
[312434020,1705871489892,-500.0,0.00042739,31]
[312434021,1705871489902,-500.0,0.00042739,31]
[312434022,1705871489912,-718.33,0.00042739,31]
[312434023,1705871489922,-2759.02,0.00042739,31]
[312434024,1705871489930,-1473.4,0.00042739,31]
[312434025,1705871489940,-500.0,0.00042739,31]
[312434026,1705871490290,-21229.04,0.00042739,31]
[312434027,1705871490317,-863.04,0.00042739,31]
[312434028,1705871490326,-3161.98,0.00042739,31]
[312434029,1705871490335,-500.0,0.00042739,31]
[312434030,1705871490345,-1129.42,0.00042739,31]
[312434031,1705871490355,-500.0,0.00042739,31]
[312434032,1705871490366,-500.0,0.00042739,31]
[312434033,1705871490375,-1038.2,0.00042739,31]
[312434034,1705871490385,-500.0,0.00042739,31]
[312434035,1705871490395,-1570.2,0.00042739,31]
[312434036,1705871490405,-500.0,0.00042739,31]
[312434037,1705871490416,-1004.63,0.00042739,31]
[312434038,1705871490426,-500.0,0.00042739,31]
[312434039,1705871490435,-893.88,0.00042739,31]
[312434040,1705871490445,-3392.31,0.00042739,31]
[312434041,1705871490455,-1099.89,0.00042739,31]
[312434042,1705871490464,-1311.78,0.00042739,31]
[312434043,1705871490474,-500.0,0.00042739,31]
[312434044,1705871490484,-2723.77,0.00042739,31]
[312434045,1705871490493,-670.88,0.00042739,31]
[312434046,1705871490503,-947.36,0.00042739,31]
[312434047,1705871490513,-5150.28,0.00042739,31]
[312434048,1705871490522,-1015.9,0.00042739,31]
[312434049,1705871490531,-1673.33,0.00042739,31]
[312434050,1705871490541,-4382.08,0.00042739,31]
[312434051,1705871490551,-500.0,0.00042739,31]
[312434052,1705871490560,-1588.34,0.00042739,31]
[312434053,1705871490569,-500.0,0.00042739,30]
[312434054,1705871490580,-673.38,0.00042739,31]
[312434055,1705871490590,-500.0,0.00042739,31]
[312434056,1705871490600,-500.0,0.00042739,31]
[312434057,1705871490611,-9277.65,0.00042739,31]
[312434058,1705871490622,-1645.93,0.00042739,31]
[312434059,1705871490630,-2888.27,0.00042739,31]
[312434060,1705871490640,-650.25,0.00042739,31]
[312434061,1705871490650,-1385.08,0.00042739,31]
[312434062,1705871490660,-2029.89,0.00042739,31]
[312434063,1705871490669,-1849.66,0.00042739,31]
[312434064,1705871490678,-500.0,0.00042739,31]
[312434065,1705871490688,-500.0,0.00042739,31]
[312434066,1705871490698,-808.57,0.00042739,31]
[312434067,1705871490709,-783.04,0.00042739,31]
[312434068,1705871490719,-4482.06,0.00042739,31]
[312434069,1705871490729,-1396.62,0.00042739,31]
[312434070,1705871490738,-500.0,0.00042739,31]
[312434071,1705871490747,-792.04,0.00042739,31]
[312434072,1705871490757,-1197.93,0.00042739,31]
[312434073,1705871490766,-1055.02,0.00042739,31]
[312434074,1705871490776,-6277.76,0.00042739,31]
[312434075,1705871490785,-799.68,0.00042739,31]
[312434076,1705871490795,-1099.84,0.00042739,31]
[312434077,1705871490804,-500.0,0.00042739,31]
[312434078,1705871490814,-579.3,0.00042739,31]
[312434079,1705871490823,-9665.3,0.00042739,31]
[312434080,1705871490832,-500.0,0.00042739,2]
[312434081,1705871490842,-500.0,0.00042739,31]
[312434082,1705871490851,-897.32,0.00042739,31]
[312434083,1705871490861,-469.37609494,0.00042739,31]
[312434084,1705871490870,-711.99,0.00042739,31]
[312434085,1705871490879,-624.61,0.00042739,31]
[312434086,1705871490889,-922.72,0.00042739,31]
[312434087,1705871490898,-703.04,0.00042739,31]
[312434088,1705871490907,-500.0,0.00042739,31]
[312434089,1705871490916,-150.0,0.00042757,2]
[312434090,1705871490926,-150.0,0.0004277,2]
[312434091,1705871490935,-158.0,0.000428,30]
[312434092,1705871490945,-150.0,0.00042806,2]
[312434093,1705871490955,-150.0,0.00042813,2]
[312434094,1705871490965,-150.0,0.00042818,2]
[312434095,1705871490974,-150.0,0.00042829,2]
[312434096,1705871490982,-150.0,0.00042837,2]
[312434097,1705871490992,-22369.86635931,0.00042854,5]
[312434098,1705871491001,-150.0,0.00042858,2]
[312434099,1705871491011,-150.0,0.00042869,2]
[312434100,1705871491020,-150.0,0.00042872,2]
[312434101,1705871491030,-158.44860509,0.00042873,14]
[312434102,1705871491039,-150.0,0.00042889,2]
[312434103,1705871491048,-150.0,0.00042911,2]
[312434104,1705871491058,-150.0,0.00042942,2]
[312434105,1705871491067,-150.0,0.00042945,2]
[312434106,1705871491076,-150.0,0.00042946,2]
[312434107,1705871491086,-150.0,0.00042949,2]
[312434108,1705871491096,-941.86,0.00042962,2]
[312434109,1705871491106,-803.54,0.00042962,2]
[312434110,1705871491115,-941.86,0.00042962,2]
[312434111,1705871491125,-401.94,0.00042962,2]
[312434112,1705871491134,-941.86,0.00042962,2]
[312434113,1705871491144,-401.94,0.00042962,2]
[312434114,1705871491153,-941.86,0.00042962,2]
[312434115,1705871491163,-400.97,0.00042962,2]
[312434116,1705871491172,-941.86,0.00042962,2]
[312434117,1705871491181,-1428.29,0.00042962,2]
[312434118,1705871491191,-941.86,0.00042962,2]
[312434119,1705871491201,-941.86,0.00042962,2]
[312434120,1705871491211,-556.74,0.00042962,2]
[312434121,1705871491220,-939.77,0.00042962,2]
[312434122,1705871491229,-941.43,0.00042962,2]
[312434123,1705871491239,-150.0,0.00042963,2]
[312434124,1705871491249,-941.86,0.00042972,2]
[312434125,1705871491259,-941.86,0.00042972,2]
[312434126,1705871491268,-941.86,0.00042972,2]
[312434127,1705871491278,-150.0,0.00042986,2]
[312434128,1705871491287,-437.83,0.00043,90]
[312434129,1705871491297,-150.0,0.00043015,2]
[312434130,1705871491307,-150.0,0.00043027,2]
[312434131,1705871491317,-150.0,0.00043037,2]
[312434132,1705871491328,-150.0,0.00043079,2]
[312434133,1705871491338,-418.68,0.00043099,2]
[312434134,1705871491348,-408.0,0.00043099,2]
[312434135,1705871491359,-206.23,0.00043099,2]
[312434136,1705871491372,-150.0,0.00043099,2]
[312434137,1705871491382,-291.92,0.00043099,2]
[312434138,1705871491391,-150.0,0.00043099,2]
[312434139,1705871491402,-294.51,0.00043099,2]
[312434140,1705871491413,-300.0,0.00043099,2]
[312434141,1705871491423,-418.68,0.00043099,2]
[312434142,1705871491432,-294.51,0.00043099,2]
[312434143,1705871491443,-150.0,0.00043099,2]
[312434144,1705871491453,-150.0,0.00043099,2]
[312434145,1705871491462,-150.0,0.00043099,2]
[312434146,1705871491472,-150.0,0.00043099,2]
[312434147,1705871491482,-150.0,0.00043099,2]
[312434148,1705871491491,-294.51,0.00043099,2]
[312434149,1705871491501,-150.0,0.00043099,2]
[312434150,1705871491511,-300.0,0.00043109,2]
[312434151,1705871491521,-150.0,0.00043109,2]
[312434152,1705871491531,-300.0,0.00043109,2]
[312434153,1705871491541,-150.0,0.00043109,2]
[312434154,1705871491550,-583.84,0.00043109,2]
[312434155,1705871491559,-417.96,0.00043109,2]
[312434156,1705871491569,-300.0,0.00043109,2]
[312434157,1705871491579,-690.98,0.00043109,2]
[312434158,1705871491588,-293.09,0.00043109,2]
[312434159,1705871491598,-150.0,0.00043109,2]
[312434160,1705871491607,-150.0,0.00043109,2]
[312434161,1705871491617,-150.0,0.00043119,2]
[312434162,1705871491627,-150.0,0.00043129,2]
[312434163,1705871491637,-150.0,0.00043136,2]
[312434164,1705871491647,-150.0,0.00043139,2]
[312434165,1705871491657,-150.0,0.00043151,2]
[312434166,1705871491667,-150.0,0.00043186,2]
[312434167,1705871491677,-350.0,0.0004319,3]
[312434168,1705871491686,-150.0,0.00043217,2]
[312434169,1705871491696,-150.0,0.00043224,2]
[312434170,1705871491706,-160.68872766,0.0004323,14]
[312434171,1705871491715,-1000.0,0.00043239,2]
[312434172,1705871491725,-150.0,0.0004324,2]
[312434173,1705871491734,-150.0,0.00043247,2]
[312434174,1705871491744,-150.0,0.00043254,2]
[312434175,1705871491754,-150.0,0.00043258,2]
[312434176,1705871491764,-150.0,0.00043261,2]
[312434177,1705871491773,-150.0,0.00043269,2]
[312434178,1705871491783,-273.13317958,0.00043286,4]
[312434179,1705871491792,-150.0,0.00043286,4]
[312434180,1705871491802,-500.0,0.00043287,31]
[312434181,1705871491812,-500.0,0.00043287,31]
[312434182,1705871491822,-500.0,0.00043287,31]
[312434183,1705871491831,-500.0,0.00043287,31]
[312434184,1705871491841,-500.0,0.00043287,31]
[312434185,1705871491850,-500.0,0.00043287,31]
[312434186,1705871491860,-500.0,0.00043287,31]
[312434187,1705871491870,-500.0,0.00043287,31]
[312434188,1705871491880,-675.52,0.00043287,31]
[312434189,1705871491889,-500.0,0.00043287,31]
[312434190,1705871491899,-500.0,0.00043287,31]
[312434191,1705871491908,-500.0,0.00043287,31]
[312434192,1705871491918,-252.05,0.00043287,30]
[312434193,1705871491927,-715.06,0.00043287,31]
[312434194,1705871491937,-500.0,0.00043287,31]
[312434195,1705871491946,-500.0,0.00043287,31]
[312434196,1705871491956,-500.0,0.00043287,31]
[312434197,1705871491966,-500.0,0.00043287,31]
[312434198,1705871491975,-1167.37,0.00043287,31]
[312434199,1705871491985,-500.0,0.00043287,31]
[312434200,1705871491994,-500.0,0.00043287,31]
[312434201,1705871492004,-500.0,0.00043287,31]
[312434202,1705871492015,-500.0,0.00043287,31]
[312434203,1705871492025,-500.0,0.00043287,31]
[312434204,1705871492035,-507.14231306,0.00043287,31]
[312434205,1705871492044,-500.0,0.00043287,31]
[312434206,1705871492054,-255.01582246,0.00043287,7]
[312434207,1705871492063,-1084.12,0.00043287,7]
[312434208,1705871492073,-623.7,0.00043287,31]
[312434209,1705871492083,-500.0,0.00043287,31]
[312434210,1705871492093,-500.0,0.00043287,31]
[312434211,1705871492103,-500.0,0.00043287,20]
[312434212,1705871492113,-497.07600493,0.00043287,31]
[312434213,1705871492123,-500.0,0.00043287,31]
[312434214,1705871492133,-726.74,0.00043287,31]
[312434215,1705871492143,-500.0,0.00043287,31]
[312434216,1705871492153,-500.0,0.00043287,31]
[312434217,1705871492163,-1043.82,0.00043287,31]
[312434218,1705871492173,-500.0,0.00043287,31]
[312434219,1705871492183,-500.0,0.00043287,31]
[312434220,1705871492193,-714.78,0.00043287,31]
[312434221,1705871492203,-500.0,0.00043287,31]
[312434222,1705871492213,-325.83302841,0.00043287,31]
[312434223,1705871492223,-500.0,0.00043287,31]
[312434224,1705871492233,-556.17,0.00043287,31]
[312434225,1705871492243,-620.92,0.00043287,31]
[312434226,1705871492253,-500.0,0.00043287,31]
[312434227,1705871492263,-500.0,0.00043287,31]
[312434228,1705871492279,-500.0,0.00043287,31]
[312434229,1705871492290,-500.0,0.00043287,31]
[312434230,1705871492301,-659.98,0.00043287,31]
[312434231,1705871492312,-710.08,0.00043287,31]
[312434232,1705871492322,-500.0,0.00043287,10]
[312434233,1705871492333,-500.0,0.00043287,31]
[312434234,1705871492344,-671.32,0.00043287,31]
[312434235,1705871492355,-500.0,0.00043287,31]
[312434236,1705871492368,-500.0,0.00043287,31]
[312434237,1705871492379,-442.52300666,0.00043287,31]
[312434238,1705871492389,-500.0,0.00043287,31]
[312434239,1705871492400,-500.0,0.00043287,31]
[312434240,1705871492411,-500.0,0.00043287,31]
[312434241,1705871492422,-1009.65,0.00043287,31]
[312434242,1705871492433,-500.0,0.00043287,31]
[312434243,1705871492444,-639.04,0.00043287,31]
[312434244,1705871492455,-500.0,0.00043287,31]
[312434245,1705871492466,-500.0,0.00043287,31]
[312434246,1705871492476,-500.0,0.00043287,31]
[312434247,1705871492487,-500.0,0.00043287,31]
[312434248,1705871492497,-519.76,0.00043287,31]
[312434249,1705871492508,-500.0,0.00043287,31]
[312434250,1705871492518,-500.0,0.00043287,2]
[312434251,1705871492528,-702.57,0.00043287,31]
[312434252,1705871492538,-500.0,0.00043287,31]
[312434253,1705871492549,-500.0,0.00043287,31]
[312434254,1705871492559,-500.0,0.00043287,31]
[312434255,1705871492570,-500.0,0.00043287,31]
[312434256,1705871492580,-500.0,0.00043287,31]
[312434257,1705871492590,-573.93,0.00043287,31]
[312434258,1705871492602,-624.0,0.00043287,31]
[312434259,1705871492612,-500.0,0.00043287,31]
[312434260,1705871492622,-500.0,0.00043287,31]
[312434261,1705871492633,-868.61,0.00043287,31]
[312434262,1705871492643,-1385.45,0.00043287,31]
[312434263,1705871492654,-500.0,0.00043287,31]
[312434264,1705871492664,-1158.26,0.00043287,31]
[312434265,1705871492674,-500.0,0.00043287,31]
[312434266,1705871492686,-500.0,0.00043287,31]
[312434267,1705871492696,-500.0,0.00043287,31]
[312434268,1705871492706,-500.0,0.00043287,31]
[312434269,1705871492896,-1212.37,0.00043287,31]
[312434270,1705871492906,-500.0,0.00043287,31]
[312434271,1705871492916,-953.33,0.00043287,31]
[312434272,1705871492925,-733.91,0.00043287,31]
[312434273,1705871492935,-500.0,0.00043287,31]
[312434274,1705871492944,-771.77,0.00043287,31]
[312434275,1705871492954,-500.0,0.00043287,31]
[312434276,1705871492964,-500.0,0.00043287,31]
[312434277,1705871492974,-500.0,0.00043287,31]
[312434278,1705871492983,-700.36,0.00043287,31]
[312434279,1705871492992,-473.56625171,0.00043287,31]
[312434280,1705871493002,-500.0,0.00043287,31]
[312434281,1705871493011,-757.31,0.00043287,31]
[312434282,1705871493021,-2590.24,0.00043287,31]
[312434283,1705871493031,-1179.99,0.00043287,31]
[312434284,1705871493040,-500.0,0.00043287,31]
[312434285,1705871493050,-501.25,0.00043287,31]
[312434286,1705871493059,-543.7,0.00043287,31]
[312434287,1705871493069,-500.0,0.00043287,31]
[312434288,1705871493079,-500.0,0.00043287,60]
[312434289,1705871493090,-1133.62,0.00043287,31]
[312434290,1705871493100,-500.0,0.00043287,31]
[312434291,1705871493109,-605.5,0.00043287,31]
[312434292,1705871493119,-711.31,0.00043287,31]
[312434293,1705871493130,-500.0,0.00043287,31]
[312434294,1705871493139,-1138.04,0.00043287,31]
[312434295,1705871493149,-500.0,0.00043287,31]
[312434296,1705871493158,-500.0,0.00043287,31]
[312434297,1705871493168,-500.0,0.00043287,31]
[312434298,1705871493178,-500.0,0.00043287,31]
[312434299,1705871493188,-1007.14,0.00043287,31]
[312434300,1705871493198,-500.0,0.00043287,31]
[312434301,1705871493208,-500.0,0.00043287,31]
[312434302,1705871493218,-500.0,0.00043287,31]
[312434303,1705871493233,-500.0,0.00043287,31]
[312434304,1705871493243,-515.59,0.00043287,31]
[312434305,1705871493252,-646.13,0.00043287,31]
[312434306,1705871493263,-500.0,0.00043287,31]
[312434307,1705871493272,-500.0,0.00043287,31]
[312434308,1705871493282,-624.52,0.00043287,31]
[312434309,1705871493291,-1107.78,0.00043287,31]
[312434310,1705871493301,-779.85,0.00043287,31]
[312434311,1705871493312,-500.0,0.00043287,31]
[312434312,1705871493321,-570.67,0.00043287,31]
[312434313,1705871493330,-256.44599068,0.00043287,31]
[312434314,1705871493340,-500.0,0.00043287,31]
[312434315,1705871493350,-773.44,0.00043287,31]
[312434316,1705871493360,-500.0,0.00043287,31]
[312434317,1705871493374,-500.0,0.00043287,31]
[312434318,1705871493383,-670.23,0.00043287,31]
[312434319,1705871493394,-500.0,0.00043287,31]